Cogmind - Beta 16 @@@ ROGUE MODE // 2025.11.30 @ 21:53:13 Player: FR-13D Result: Destroyed by G-47 Trooper with Particle Gun Performance ------------- Evolutions (2) 1000 Regions Visited (5) 1000 Robots Destroyed (103) 515 Value Destroyed (3096) 3096 Prototype IDs (5) 100 Alien Tech Used (0) 0 Bonus (1312) 1312 TOTAL SCORE: 7023 Bonus ------- High Alert Combat Kills 567 Follower Combat Kills 45 Entered Garrisons 200 Used RIF Installer 500 Cogmind --------- Core Integrity 0/550 Matter 270/300 Energy 200/200 System Corruption 1% Temperature Cool (30) Movement Treading (320) Ox2 Location -8/Materials Parts ------- > --- POWER (2) -------- Micro Nuclear Core Micro Nuclear Core > --- PROPULSION (2) --- Light Treads Light Treads > --- UTILITY (5) ------ Improved Heat Sink Improved Heat Sink Huge Storage Unit Improved Signal Interpreter Seismic Detector > --- WEAPON (2) ------- Particle Gun Advanced Beam Cannon > --- INVENTORY (25) --- Improved Ion Engine Improved Ion Engine Reinforced Ion Engine Light Nuclear Core Light Nuclear Core Wheel Thermal Generator Improved Heat Sink Improved Heat Sink Improved Heat Sink Cooling System Structural Scanner Improved Terrain Scanner Improved Targeting Computer ECM Suite Light Armor Plating Improved Shield Generator Improved Shield Generator Improved Medium Laser Pulse Rifle Mini Grenade Launcher Datajack Plasma Cutter Greatsword Peak State ------------ > --- POWER ------------ Deuterium Engine Light Nuclear Core > --- PROPULSION ------- Advanced Treads Wheel > --- UTILITY ---------- Improved Heat Sink Improved Heat Sink Huge Storage Unit Improved Signal Interpreter Reactive Plating > --- WEAPON ----------- Improved Medium Laser Pulse Rifle > --- INVENTORY -------- Reinforced Ion Engine Light Nuclear Core Light Nuclear Core Light Treads Wheel Thermal Generator Improved Heat Sink Cooling System Structural Scanner Trap Scanner Improved Signal Interpreter Improved Terrain Scanner Seismic Detector Improved Targeting Computer ECM Suite Particle Gun Advanced Beam Cannon Advanced Beam Cannon Mini Grenade Launcher Datajack Plasma Cutter Greatsword [Rating: 34] Favorites ----------- Power Improved Ion Engine Engine Improved Ion Engine Power Core Light Nuclear Core Propulsion Wheel Treads Light Treads Wheel Wheel Utility Improved Signal Interpreter Device Improved Heat Sink Storage Huge Storage Unit Processor Improved Signal Interpreter Protection Reactive Plating Weapon Advanced Beam Cannon Energy Gun Improved Medium Laser Energy Cannon Advanced Beam Cannon Ballistic Gun Shotgun Launcher Mini Grenade Launcher Special Weapon Plasma Cutter Slashing Weapon Greatsword Build | -11 -10 -9 -8 -8 -8 ------- Run | Yrd Mat Mat Mat Gar Mat Slots Evolved 4 | . . 2 2 . . Power 1 | . . . 1 . . Propulsion . | . . . . . . Utility 3 | . . 2 1 . . Weapon . | . . . . . . Parts Attached 84 | 10 5 20 27 21 1 Power 15 | 2 . 1 5 7 . Engine 9 | 2 . 1 2 4 . Core 6 | . . . 3 3 . Reactor . | . . . . . . Propulsion 20 | 3 2 5 5 4 1 Treads 12 | . 2 2 3 4 1 Leg . | . . . . . . Wheel 8 | 3 . 3 2 . . Hover . | . . . . . . Flight . | . . . . . . Utility 29 | 3 2 8 10 6 . Device 16 | 2 . 3 6 5 . Storage 6 | 1 2 2 1 . . Processor 3 | . . 2 . 1 . Hackware . | . . . . . . Protection 4 | . . 1 3 . . Artifact . | . . . . . . Weapon 20 | 2 1 6 7 4 . Energy Gun 9 | 1 . 3 4 1 . Energy Cannon 3 | . . 1 . 2 . Ballistic Gun 3 | 1 . 2 . . . Ballistic Cannon . | . . . . . . Launcher 2 | . . . 2 . . Special Weapon 2 | . 1 . . 1 . Impact Weapon . | . . . . . . Slashing Weapon 1 | . . . 1 . . Piercing Weapon . | . . . . . . Special Melee Weapon . | . . . . . . Unidentified Prototypes 3 | . . 1 2 . . Parts Lost 19 | . . 4 9 6 . Power 4 | . . . 2 2 . Propulsion 5 | . . 1 2 2 . Utility 7 | . . 2 3 2 . Weapon 3 | . . 1 2 . . Highest Loss Streak 6 | . . 2 6 4 . To Critical Strikes . | . . . . . . Average Backups 21 | 4 10 20 23 23 24 Power 2 | . 1 1 1 3 5 Propulsion 3 | 2 3 5 4 3 1 Utility 9 | . 4 8 10 10 12 Weapon 4 | 1 2 4 6 4 4 Tool/Special . | . . . . . . Unused Backups 21 | . . 3 5 1 12 Power 4 | . . . . . 4 Propulsion 4 | . . 3 1 . . Utility 11 | . . . 3 1 7 Weapon 1 | . . . 1 . . Tool/Special 1 | . . . . . 1 Average Slot Usage (%) 97 | . 100 95 96 97 100 Engine 13 | . 14 10 14 14 . Core 3 | . . . 3 3 18 Treads 8 | . 4 5 2 12 9 Wheel 9 | . 23 16 14 4 8 Device 18 | . 14 15 22 17 27 Storage 9 | . 14 11 9 9 9 Processor 11 | . . 10 9 14 9 Protection 2 | . . 3 2 3 . Energy Gun 9 | . 14 11 9 7 9 Energy Cannon 5 | . . 5 . 8 9 Ballistic Gun 2 | . 13 5 5 . . Peak Build Rating 34 | 8 8 18 32 34 34 Average Rating 25 | 6 8 12 25 31 32 On Entrance 16 | . 8 8 18 32 34 Avg Prop Armor Cover (%) 9 | . . 13 8 7 11 Naked Turns . | . . . . . . Heaviest Build 115 | 15 50 95 114 115 105 Greatest Support 43 | 26 40 40 43 42 10 Greatest Overweight (x) 11 | . 2 9 10 11 10 Average Overweight (x) 4 | . . 4 4 4 10 Largest Inventory Capacity 25 | 8 20 25 25 25 25 Average Capacity 24 | 7 14 24 25 25 25 Most Carried 25 | 8 15 25 25 25 25 Average Carried 22 | 4 11 20 24 24 25 Final Capacity 25 | 8 20 25 25 25 25 Final Carried 25 | 8 15 25 23 25 25 Class Distribution -------------------- 56% | Scavenger-Mutant 43% | Mutant Dominant Class ---------------- Mutant | -10/Materials Mutant | -9/Materials Scavenger-Mutant | -8/Materials Scavenger-Mutant | -8/Garrison Scavenger-Mutant | -8/Materials Resources | -11 -10 -9 -8 -8 -8 ----------- Run | Yrd Mat Mat Mat Gar Mat Matter Collected 2536 | 330 138 628 805 635 . Remotely . | . . . . . . Salvage Created 3637 | 127 162 998 1441 909 . Parts 187 | 10 7 50 75 45 . Haulers Intercepted 7 | . . 4 3 . . Recyclers Shooed 5 | 2 . 2 1 . . Parts Field Recycled . | . . . . . . Retrieved Matter . | . . . . . . Parts Self-Destructed . | . . . . . . Prevented . | . . . . . . Parts Restored . | . . . . . . Kills | -11 -10 -9 -8 -8 -8 ------- Run | Yrd Mat Mat Mat Gar Mat Combat Hostiles Destroyed 83 | . 5 17 32 29 . Melee 3 | . . . 3 . . Guns 52 | . 5 15 22 10 . Cannons 14 | . . 2 . 12 . AOE 10 | . . . 4 6 . Classes Destroyed 13 | 2 3 3 2 3 . Worker 1 | . . 1 . . . Builder 1 | . . . 1 . . Tunneler 3 | 3 . . . . . Hauler 7 | . . 4 3 . . Recycler 6 | 1 . 4 1 . . Watcher 2 | . 1 . 1 . . Swarmer 35 | . 3 10 11 11 . Grunt 29 | . 2 3 16 8 . Brawler 2 | . . . 1 1 . Duelist 1 | . . . . 1 . Sentry 14 | . . 4 4 6 . Hunter 1 | . . . . 1 . Programmer 1 | . . . . 1 . Best Kill Streak 7 | 3 4 6 7 4 . Combat Bots Only 7 | . 4 4 7 4 . Max Kills in Single Turn 2 | 1 1 2 2 2 . Gunslinging 1 | . . . 1 . . Exploded 2 | . . . 1 2 . Melee 1 | . . . 1 . . Uniques/NPCs Destroyed . | . . . . . . Combat | -11 -10 -9 -8 -8 -8 -------- Run | Yrd Mat Mat Mat Gar Mat Hostile Shots Fired 462 | . 32 107 145 170 8 Missed 115 | . 8 32 29 43 3 Hits 347 | . 24 75 116 127 5 Melee 3 | . . . . 3 . Projectile 344 | . 24 75 116 124 5 AOE 2 | . . . . 2 . Critical Strikes 8 | . . . 5 3 . Damage Taken 4590 | . 230 816 1787 1676 81 Core 749 | . 44 145 340 203 17 Absorbed by Shields 257 | . . . . 257 . Ignored by Resistances 69 | . . . . 69 . Core Remaining (%) 81 | 100 82 63 . . . Volleys Fired 298 | 10 25 58 85 118 2 Largest 2 | 2 2 2 2 2 2 Hottest 150 | 70 150 124 119 136 133 Shots Fired 547 | 20 50 114 142 217 4 Gun 396 | 20 47 104 135 88 2 Cannon 128 | . . 10 . 116 2 Launcher 20 | . . . 7 13 . Special 3 | . 3 . . . . Kinetic 118 | 10 22 46 40 . . Thermal 348 | 10 28 68 34 204 4 Explosive 20 | . . . 7 13 . Electromagnetic 61 | . . . 61 . . Robot Hit Streak 26 | 10 9 26 15 15 3 Robot Miss Streak 5 | 1 5 5 5 4 1 Penetration Max . | . . . . . . Secondary Targets 7 | . . 5 2 . . Max Gunslinging Chain 1 | . . 1 1 . . Shots Hit Robots 338 | 15 24 88 111 97 3 Core Hits 165 | 5 9 37 68 45 1 Critical Kills 1 | . . 1 . . . Critical Parts Destroyed 1 | . . 1 . . . Critical Strikes 20 | 1 2 8 5 4 . Burn 17 | 1 2 6 4 4 . Destroy 2 | . . 2 . . . Corrupt 1 | . . . 1 . . Melee Attacks 7 | . . . 7 . . Impact . | . . . . . . Slashing 7 | . . . 7 . . Piercing . | . . . . . . Sneak Attacks . | . . . . . . Combat Hostiles . | . . . . . . Follow-up Attacks . | . . . . . . Damage Inflicted 7023 | 186 304 1237 2716 2523 57 Guns 4265 | 186 304 1075 1826 859 15 Cannons 1220 | . . 162 . 1016 42 Explosions 1280 | . . . 632 648 . Melee 258 | . . . 258 . . Ramming . | . . . . . . Kinetic 1179 | 100 131 499 449 . . Thermal 3416 | 86 173 738 487 1875 57 Explosive 1198 | . . . 550 648 . Electromagnetic 972 | . . . 972 . . Impact . | . . . . . . Slashing 258 | . . . 258 . . Piercing . | . . . . . . Highest Corruption 1 | . . 1 . 1 1 Average Corruption 1 | . . 1 . 1 1 Corruption Purged . | . . . . . . Corruption Blocked . | . . . . . . Effects 2 | . . . . 2 . Heat Flow Errors 2 | . . . . 2 . Overload Shots . | . . . . . . Overflow Damage 46 | . . 10 10 26 . Projectiles 11 | . . 10 . 1 . Explosions 30 | . . . 5 25 . Melee 5 | . . . 5 . . Knockbacks . | . . . . . . Impact . | . . . . . . Kinetic . | . . . . . . Secondary . | . . . . . . Self-Inflicted Damage 212 | . . . 181 31 . Shots 8 | . . . 6 2 . Rammed . | . . . . . . Targets Rammed . | . . . . . . Kicked . | . . . . . . Crushed . | . . . . . . Highest Temperature 331 | 36 150 279 131 331 22 Average Temperature 83 | 16 59 104 37 100 14 Received Heat Transfer 1660 | . 66 183 747 619 45 Effects 2 | . . 1 . 1 . Energy Bleed 1 | . . . . 1 . Interference 1 | . . 1 . . . Siege Activations . | . . . . . . Martial Activations . | . . . . . . Shielding Activations . | . . . . . . Robots Disrupted . | . . . . . . Combat Hostiles . | . . . . . . Robots Corrupted 2 | . . . 2 . . Combat Hostiles 2 | . . . 2 . . Parts Fried 7 | . . . 7 . . Impact Corruptions . | . . . . . . Robots Melted 3 | . . 1 1 1 . Combat Hostiles 2 | . . . 1 1 . Parts Melted 28 | . 2 8 3 15 . Heat Transferred 8541 | 333 666 2368 1321 3742 111 Parts Sabotaged . | . . . . . . Parts Stolen . | . . . . . . Parts Stripped . | . . . . . . Power Chain Reactions 2 | . . . 2 . . Alert | -11 -10 -9 -8 -8 -8 ------- Run | Yrd Mat Mat Mat Gar Mat Maximum Alert Level 5 | . . . 2 5 4 Low Security (%) 38 | 100 100 100 66 . . Level 1 11 | . . . 28 10 . Level 2 12 | . . . 4 21 . Level 3 12 | . . . . 24 . Level 4 10 | . . . . 16 100 Level 5 13 | . . . . 27 . High Security . | . . . . . . Max Security . | . . . . . . Peak Influence 2497 | 10 71 194 487 2497 1216 Initial 1216 | . . 5 41 317 1216 Average 672 | 1 19 92 146 1160 1184 Influence Increases 3996 | 20 155 524 982 2300 15 Destroy 0b10 Robot/C 1680 | . 100 340 640 600 . Destroy 0b10 Robot/NC 100 | 20 5 45 30 . . Destroy Leader 268 | . 22 98 128 20 . Allied During Kill 3 | . . . . 3 . Successful Hack 55 | . 10 11 4 30 . Disable Machine 90 | . 15 . 45 30 . Anti-Garrison Action 1400 | . . . . 1400 . Destroy Structure 250 | . 3 . 60 187 . Lose Combat Pursuer 150 | . . 30 75 30 15 Influence Decreases 2835 | 20 140 440 593 291 1351 Entered New Map 1520 | . . 10 58 171 1281 Time Decay 1074 | 20 140 390 454 . 70 Lost Part 181 | . . 40 81 60 . Lost Ally 60 | . . . . 60 . Squads Dispatched 10 | . 3 2 3 . 2 Investigation 3 | . 1 1 1 . . Extermination . | . . . . . . Reinforcement 6 | . 2 1 2 . 1 Assault . | . . . . . . Garrison 1 | . . . . . 1 Intercept . | . . . . . . Searches Triggered . | . . . . . . Construction Impeded . | . . . . . . Haulers Reinforced . | . . . . . . Active Scanning Responses . | . . . . . . Cargo Convoy Interrupts . | . . . . . . Stealth | -11 -10 -9 -8 -8 -8 --------- Run | Yrd Mat Mat Mat Gar Mat Distress Signals 6 | . . 3 3 . . Communications Jammed . | . . . . . . Distress Signals . | . . . . . . Times Spotted 118 | . 10 29 45 31 3 Peak Tracking Total 5 | . 5 5 5 3 4 Tactical Retreats 9 | . . 2 4 2 1 Traps | -11 -10 -9 -8 -8 -8 ------- Run | Yrd Mat Mat Mat Gar Mat Traps Triggered 10 | . 1 3 1 5 . Indirectly . | . . . . . . Trap Hack Attempts . | . . . . . . Triggered . | . . . . . . Disarmed 6 | . . 6 . . . Reprogrammed . | . . . . . . Reused . | . . . . . . Traps Extracted . | . . . . . . Installed . | . . . . . . Triggered . | . . . . . . Machines | -11 -10 -9 -8 -8 -8 ---------- Run | Yrd Mat Mat Mat Gar Mat Machines Disabled 8 | . 1 . 3 4 . Max in Single Turn 1 | . 1 . 1 1 . Garrison Relay 2 | . . . . 2 . Machines Repaired . | . . . . . . Machines Dismantled 3 | . . . . 3 . Machines Sabotaged . | . . . . . . Overloaded Fab Kills . | . . . . . . Hacking | -11 -10 -9 -8 -8 -8 --------- Run | Yrd Mat Mat Mat Gar Mat Machines Accessed 13 | . 1 5 5 2 . Terminals 9 | . 1 2 4 2 . Fabricators . | . . . . . . Repair Stations . | . . . . . . Recycling Units 1 | . . 1 . . . Scanalyzers 2 | . . 2 . . . Garrison Access 1 | . . . 1 . . Total Hacks 31 | . 5 11 11 4 . Successful 13 | . 3 6 2 2 . Failed 17 | . 2 4 9 2 . Catastrophic 1 | . . . 1 . . Database Lockouts 1 | . . 1 . . . Manual 13 | . 3 4 6 . . Terminals 24 | . 5 5 10 4 . Fabricators . | . . . . . . Repair Stations . | . . . . . . Recycling Units 1 | . . 1 . . . Scanalyzers 5 | . . 5 . . . Garrison Access 1 | . . . 1 . . Terminal Hacks 7 | . 2 2 1 2 . Robot Analysis 1 | . . 1 . . . Prototype ID Bank 1 | . 1 . . . . Emergency Access Points 1 | . . . . 1 . Disarm Traps 1 | . . 1 . . . Zone Layout 2 | . 1 . 1 . . Security Stations 1 | . . . . 1 . Fabricator Hacks . | . . . . . . Repair Station Hacks . | . . . . . . Recycling Unit Hacks . | . . . . . . Scanalyzer 3 | . . 3 . . . Insert Component 1 | . . 1 . . . Analyze 1 | . . 1 . . . Retrieve Study 1 | . . 1 . . . Garrison Access Hacks 1 | . . . 1 . . Unlock Access 1 | . . . 1 . . Unauthorized Hacks 2 | . 1 1 . . . Terminals 1 | . 1 . . . . Botnet 1 | . 1 . . . . Fabricators . | . . . . . . Repair Stations . | . . . . . . Recycling Units 1 | . . 1 . . . Mask 1 | . . 1 . . . Scanalyzers . | . . . . . . Garrison Access . | . . . . . . Data Cores Recovered . | . . . . . . Used . | . . . . . . Hacking Detections 12 | . 1 4 5 2 . Full Trace Events 1 | . . 1 . . . Feedback Events 1 | . . 1 . . . Corruption 1 | . . 1 . . . Feedback Blocked . | . . . . . . Robot Schematics Acquired . | . . . . . . Robots Built . | . . . . . . Authchips . | . . . . . . Time . | . . . . . . Total Robot Build Rating . | . . . . . . Part Schematics Acquired 1 | . . 1 . . . Parts Built . | . . . . . . Authchips . | . . . . . . Time . | . . . . . . Total Part Build Rating . | . . . . . . Part Studies Acquired 1 | . . 1 . . . Parts Repaired . | . . . . . . Time . | . . . . . . Parts Recycled . | . . . . . . Recycled Matter . | . . . . . . Retrieved Matter . | . . . . . . Retrieved Components . | . . . . . . Parts Scanalyzed 1 | . . 1 . . . Part Schematics Acquired 1 | . . 1 . . . Parts Damaged . | . . . . . . Bothacking | -11 -10 -9 -8 -8 -8 ------------ Run | Yrd Mat Mat Mat Gar Mat Used RIF Installer 1 | . . . . 1 . Robots Hacked . | . . . . . . Non-combat . | . . . . . . Combat . | . . . . . . Robot Hacks Applied . | . . . . . . Relay Couplers Released 7 | . . . . 7 . Machine Destruction 7 | . . . . 7 . Fabnet Peak Effective % . | . . . . . . Robots Rewired 3 | . . . . 3 . Allies Hacked . | . . . . . . Hacks Repelled . | . . . . . . Allies | -11 -10 -9 -8 -8 -8 -------- Run | Yrd Mat Mat Mat Gar Mat Total Allies 3 | . . . . 3 . Largest Group 3 | . . . . 3 . Highest-Rated Group 87 | . . . . 87 . Highest-Rated Ally 31 | . . . . 31 . Total Orders . | . . . . . . Ally Attacks 4 | . . . . 4 . Total Damage 53 | . . . . 53 . Kills 1 | . . . . 1 . Allies Corrupted . | . . . . . . Allies Melted . | . . . . . . Intel | -11 -10 -9 -8 -8 -8 ------- Run | Yrd Mat Mat Mat Gar Mat Active Infowar (turns) 4348 | 66 422 1093 1369 1270 128 Sensors 1664 | . . 1093 571 . . Terrain 2 | . . . . 2 . Structural 404 | . . . 338 1 65 Traps 1262 | . . . . 1262 . Seismic 2366 | 66 422 441 1369 5 63 Robot Analysis Total 1 | . . 1 . . . Derelict Logs Recovered . | . . . . . . Drone Launches . | . . . . . . Drone Recoveries . | . . . . . . Exploration | -11 -10 -9 -8 -8 -8 ------------- Run | Yrd Mat Mat Mat Gar Mat Turns Passed 7181 | 111 422 1185 1612 3705 146 Spaces Moved 3022 | 59 326 609 756 1225 47 Core 1 | 1 . . . . . Treads 676 | . 4 2 1 669 . Legs . | . . . . . . Wheels 2345 | 58 322 607 755 556 47 Hover . | . . . . . . Flight . | . . . . . . Fastest Speed 50 | 50 80 110 130 145 220 Average Speed 183 | 82 94 144 144 255 220 Slowest Speed 560 | 100 240 320 320 560 220 Overloaded Moves . | . . . . . . Propulsion Burnouts . | . . . . . . Robots Hopped . | . . . . . . Potential Cave-ins . | . . . . . . Cave-ins Triggered . | . . . . . . Exploration Rate (%) 41 | 4 43 43 56 97 5 Regions Visited 5 Branch Regions . Pre-discovered Areas . | . . . . . . Known Exits Taken 2 | . . 1 1 . . Unknown Exits Taken 2 | 1 1 . . . . Scrap Searched . | . . . . . . Spaces Dug 1 | . . . 1 . . Terrain Destroyed 101 | . . . 60 41 . Melee 1 | . . . 1 . . Projectile . | . . . . . . AOE 100 | . . . 59 41 . Terrain Rammed . | . . . . . . Walls Destroyed . | . . . . . . Machines Disabled . | . . . . . . Actions | -11 -10 -9 -8 -8 -8 --------- Run | Yrd Mat Mat Mat Gar Mat Total 4021 | 97 380 797 1116 1547 84 Wait 330 | 11 7 43 152 85 32 Move 3018 | 58 325 608 756 1224 47 Hop . | . . . . . . Pick Up 77 | 7 8 26 27 9 . Fast Attach 15 | 6 . 5 2 2 . Attach 32 | 1 . 10 16 5 . Detach 8 | . . 5 2 1 . Swap 135 | 3 12 27 44 46 3 Drop 55 | 1 3 15 25 11 . Fire 298 | 10 25 58 85 118 2 Melee 7 | . . . 7 . . Ram . | . . . . . . Kick . | . . . . . . Crush . | . . . . . . Escape Stasis 8 | . . . . 8 . Rewire 24 | . . . . 24 . Trap . | . . . . . . Miscellaneous 14 | . . . . 14 . Route ------- -11/Scrapyard -10/Materials (discovered 3 exits: *Mat x2 / [*Min]) -9/Materials (discovered 2 exits: *Mat / *Sto) -8/Materials (discovered 3 exits: *Fac x2 / Gar) -8/Garrison (discovered 3 exits: *Mat x3) -8/Materials History --------- Turn | Location | Event 19 | -11/Scrapyard | Discovered new exit (range 15) 112 | -11/Scrapyard | Entered Materials 161 | -10/Materials | Discovered new exit (range 20) 303 | -10/Materials | Build established: Mutant 400 | -10/Materials | Discovered new exit (range 8) 472 | -10/Materials | Discovered new exit (range 6) 534 | -10/Materials | Entered another Materials area 534 | -9/Materials | Evolved 2 slots: Utility x2 1197 | -9/Materials | Discovered new exit (range 10) 1449 | -9/Materials | Discovered new exit (range 8) 1459 | -9/Materials | Identified exit to Storage 1473 | -9/Materials | Central database locked down 1717 | -9/Materials | Identified exit to Materials 1719 | -9/Materials | Entered another Materials area 1719 | -8/Materials | Evolved 2 slots: Power x1, Utility x1 2261 | -8/Materials | Discovered new exit (range 11) 2882 | -8/Materials | Build established: Scavenger-Mutant 2989 | -8/Materials | Discovered new exit (range 14) 3008 | -8/Materials | Identified exit to Factory 3110 | -8/Materials | Core integrity fell below 50% 3185 | -8/Materials | Destroyed 7 combat bots 3190 | -8/Materials | Lost 6 parts (1p1n2u2w) 3331 | -8/Materials | Identified exit to Garrison 3331 | -8/Materials | Entered Garrison 3459 | -8/Garrison | Triggered checkpoint 3653 | -8/Garrison | Build established: Mutant 4178 | -8/Garrison | Triggered checkpoint 4218 | -8/Garrison | Build established: Scavenger-Mutant 4234 | -8/Garrison | Triggered checkpoint 4600 | -8/Garrison | Discovered new exit (range 13) 4633 | -8/Garrison | Core integrity fell below 20% 4675 | -8/Garrison | Lost 4 parts (2p2u) 4697 | -8/Garrison | Installed Relay Interface Framework 4747 | -8/Garrison | Identified exit to Materials 5200 | -8/Garrison | Learned Materials security intel 5487 | -8/Garrison | Triggered checkpoint 5617 | -8/Garrison | Discovered exit to Materials (range 10) 5738 | -8/Garrison | Triggered checkpoint 5820 | -8/Garrison | Discovered exit to Materials (range 10) 5841 | -8/Garrison | Triggered checkpoint 6277 | -8/Garrison | Garrison Relay disabled 6318 | -8/Garrison | Garrison Relay disabled 6799 | -8/Garrison | Triggered checkpoint 6831 | -8/Garrison | Lost 3 allies 7036 | -8/Garrison | Entered Materials 7176 | -8/Materials | Garrison activated, responded to threat 7182 | -8/Materials | Destroyed by G-47 Trooper with Particle Gun Last Messages --------------- 06929_ Dropped Imp. Heat Sink. 06930_ Acquired 3 matter. 06931_ ALERT: Garrison interior compromised. 06937_ Dropped Rnf. Ion Engine. 06938_ Acquired 27 matter. 07002_ Dropped Lgt. Treads. 07033_ System corrupted: Heat flow error (+213). 07035_ Acquired Imp. Heat Sink. 07036_ Attempting to access garrison exit controls... RIF authorized. LOCATION=MATERIALS GOAL=ESCAPE Loading Materials security intel (x10)... 07075_ Detecting nearby Garrison Access. 07096_ O-16 Technician: "IFF HANDSHAKE FAILED. SECURING TERMINAL." 07098_ ALERT: Hostiles spotted, dispatching reinforcements to Terminal M001. 07099_ K-01 Serf collects debris. 07176_ G-47 Trooper calls for garrison reinforcements. 07176_ ALERT: Activating Garrison Access M001. Map ----- +----------------------------------------------------+ | ?????????????????????????????????????????????????? | | ?????????????????????????????????????????????????? | | ?????????????????????????????????????????????????? | | ?????????????????????????????????????????????????? | | ?????????????????????????????????????????????????? | | ?????????????????????????????????????????????????? | | ?????????????????????????????????????????????????? | | ?????????????????????????????????????????????????? | | ?????????????????????????????????????????????????? | | ?????????????????????????????????????????????????? | | ?????????????????????????????????????????????????? | | ?????????????????????????????????????????????????? | | ?????????????????????????????????????????????????? | | ???????????????????????############??????????????? | | ???????????????????????############??????????????? | | ???????????????????????## ##??????????????? | | ???????????????????????## ##??????????????? | | ????????? + ######### ##??????????????? | | ?????????###### ######### ##??????????????? | | ??? / ##??????????????? | | ??? ######### ##??????????????? | | ??? ??? """###### ##??????????????? | | ???? ???????????????## ##??????????????? | | ?????????????????????#### ####????????????? | | ?????????????????############+#######????????????? | | ?????????? @ g ##????????????? | | ?????????? g ##????????????? | | ?????????? / g ##????????????? | | ???????????#T########################????????????? | | ???????????????######################????????????? | | ?????????????????????????????????????????????????? | | ?????????????????????????????????????????????????? | | | | | | | | | | | | | | | | | | | | | | | | | | | | | | | | | | | | | +----------------------------------------------------+ Best States ------------- Heat Dissipation 59 Energy Generation 25 Energy Capacity 440 Matter Stores 300 Matter Capacity 300 Sight Range 16 Robot Scan Range 14 Terrain Scan Density 10 Armor Coverage 300 Resistance: KI 20 Evasion (%) 44 Recoil Reduction 2 Item Schematics ----------------- Imp. Terrain Scanner | -9/Materials | Scanalyzed Robot Schematics ------------------ None Fabricated ------------ Nothing Repaired ---------- Nothing Studied --------- Wheel | -9/Materials | Hacked Alien Tech Used ----------------- None Achievements -------------- None Challenges ------------ None Game ------ Seed PlasmaJammingHumpback Manual? 0 Play Time 00:46:39 Cumulative 95.8 hours Start 2025.11.30 @ 21:07:02 End 2025.11.30 @ 21:53:13 Sessions 1 Manual Loads 0 Difficulty Rogue Special Mode None Game No. 100 Rogue 100 Adventurer 0 Explorer 0 Win Type - Total 0 Types 0/0/0/0/0/0/0/0/0/0 Lore% 61 Gallery% 45 Achievement% 38 Wizard Run 0 Options --------- Layout 0 ASCII 0 Keyboard 1 Movement Vi Keybinds 0 Fullscreen 2 Font 18/SmallcapsGlow Map View 76x50 Zoom Use 0% Tactical HUD 1 Map Filters NONE Filters NONE Steam 1 RUN: 844f5bae-8a7d-4cd2-819a-93a91fb70fe0